[Event "Early-Titled-Tuesday-Blitz-May-28-2024"]
[Site "Chess.com"]
[Date "2024.05.28"]
[Round "8"]
[White "simaopdias"]
[Black "JJDAREK"]
[Result "0-1"]
[WhiteElo "2237"]
[BlackElo "2362"]
[TimeControl "180+1"]
[EndTime "9:28:49 PDT"]
[Termination "JJDAREK won by checkmate"]

1. e4 {[%clk 0:03:00.6]} 1... d6 {[%clk 0:02:59.7]} 2. d4 {[%clk 0:03:00.6]}
2... Nf6 {[%clk 0:02:59.3]} 3. Nc3 {[%clk 0:03:01.5]} 3... g6 {[%clk 0:02:59.7]}
4. Be3 {[%clk 0:03:00.7]} 4... a6 {[%clk 0:02:55.2]} 5. Qd2 {[%clk 0:03:00.3]}
5... b5 {[%clk 0:02:55.1]} 6. f3 {[%clk 0:02:56.4]} 6... Nbd7 {[%clk 0:02:52.5]}
7. O-O-O {[%clk 0:02:55.9]} 7... Bb7 {[%clk 0:02:52]} 8. Kb1 {[%clk 0:02:53.1]}
8... e6 {[%clk 0:02:40.5]} 9. Bh6 {[%clk 0:02:52.8]} 9... Bxh6 {[%clk
0:02:37.7]} 10. Qxh6 {[%clk 0:02:52.6]} 10... Qe7 {[%clk 0:02:36.8]} 11. Nge2
{[%clk 0:02:48.4]} 11... c5 {[%clk 0:02:31]} 12. dxc5 {[%clk 0:02:46.1]} 12...
dxc5 {[%clk 0:02:30]} 13. Nf4 {[%clk 0:02:40.5]} 13... O-O-O {[%clk 0:02:15.5]}
14. Bd3 {[%clk 0:02:32.9]} 14... c4 {[%clk 0:02:05.8]} 15. Be2 {[%clk
0:02:23.5]} 15... Nc5 {[%clk 0:01:53.2]} 16. e5 {[%clk 0:02:12.2]} 16... Nfd7
{[%clk 0:01:50.7]} 17. Rhe1 {[%clk 0:02:00.4]} 17... Nxe5 {[%clk 0:01:47.6]} 18.
Qh3 {[%clk 0:01:49.7]} 18... h5 {[%clk 0:01:39.8]} 19. a3 {[%clk 0:01:41.8]}
19... Kb8 {[%clk 0:01:37.2]} 20. g3 {[%clk 0:01:37.9]} 20... Nxf3 {[%clk
0:01:33.4]} 21. Bxf3 {[%clk 0:01:33.6]} 21... Bxf3 {[%clk 0:01:34.3]} 22. Rxd8+
{[%clk 0:01:24.9]} 22... Rxd8 {[%clk 0:01:35.2]} 23. Qf1 {[%clk 0:01:25]} 23...
Bb7 {[%clk 0:01:26.9]} 24. Qe2 {[%clk 0:01:22.9]} 24... Rd6 {[%clk 0:01:15.1]}
25. Qe5 {[%clk 0:01:22]} 25... Nd7 {[%clk 0:01:10.1]} 26. Qh8+ {[%clk
0:01:19.9]} 26... Ka7 {[%clk 0:01:08.3]} 27. Qg7 {[%clk 0:01:18.1]} 27... Qf6
{[%clk 0:01:01.3]} 28. Qg8 {[%clk 0:01:14.9]} 28... e5 {[%clk 0:00:48.3]} 29.
Nfe2 {[%clk 0:01:10.4]} 29... Qe6 {[%clk 0:00:41.6]} 30. Nf4 {[%clk 0:01:03.6]}
30... Qf5 {[%clk 0:00:38]} 31. Nfe2 {[%clk 0:00:57.9]} 31... Rd2 {[%clk
0:00:36.2]} 32. Kc1 {[%clk 0:00:53.9]} 32... Qxc2# {[%clk 0:00:35]} 0-1

[Event "Early-Titled-Tuesday-Blitz-May-28-2024"]
[Site "Chess.com"]
[Date "2024.05.28"]
[Round "8"]
[White "Felix-Rose"]
[Black "FMStan15"]
[Result "0-1"]
[WhiteElo "2279"]
[BlackElo "2146"]
[TimeControl "180+1"]
[EndTime "9:28:49 PDT"]
[Termination "FMStan15 won by resignation"]

1. e4 {[%clk 0:03:00.9]} 1... e6 {[%clk 0:02:55.2]} 2. d4 {[%clk 0:02:59.9]}
2... d5 {[%clk 0:02:52.8]} 3. Nc3 {[%clk 0:03:00.2]} 3... Bb4 {[%clk 0:02:51.7]}
4. e5 {[%clk 0:03:00.1]} 4... c5 {[%clk 0:02:49.7]} 5. a3 {[%clk 0:03:00]} 5...
Bxc3+ {[%clk 0:02:49.9]} 6. bxc3 {[%clk 0:03:00.8]} 6... Qc7 {[%clk 0:02:50.4]}
7. Qg4 {[%clk 0:02:58.1]} 7... f5 {[%clk 0:02:50.3]} 8. Qg3 {[%clk 0:02:56.6]}
8... cxd4 {[%clk 0:02:49.9]} 9. cxd4 {[%clk 0:02:53.5]} 9... Ne7 {[%clk
0:02:45.9]} 10. c3 {[%clk 0:02:43.6]} 10... O-O {[%clk 0:02:45.3]} 11. Ne2
{[%clk 0:02:37.8]} 11... b6 {[%clk 0:02:44.2]} 12. Nf4 {[%clk 0:02:34.2]} 12...
Qd7 {[%clk 0:02:44]} 13. a4 {[%clk 0:02:22.9]} 13... Ba6 {[%clk 0:02:43.7]} 14.
Bb5 {[%clk 0:02:22.4]} 14... Bxb5 {[%clk 0:02:43]} 15. axb5 {[%clk 0:02:22.7]}
15... a5 {[%clk 0:02:43.1]} 16. bxa6 {[%clk 0:02:20.4]} 16... Rxa6 {[%clk
0:02:40]} 17. Rxa6 {[%clk 0:02:16.4]} 17... Nxa6 {[%clk 0:02:40.1]} 18. O-O
{[%clk 0:02:16.2]} 18... Nc7 {[%clk 0:02:32.9]} 19. Bd2 {[%clk 0:02:14.6]} 19...
Ra8 {[%clk 0:02:32.6]} 20. h4 {[%clk 0:02:13.1]} 20... Ra2 {[%clk 0:02:30]} 21.
Qd3 {[%clk 0:02:06.4]} 21... Qb5 {[%clk 0:02:25.6]} 22. Qe3 {[%clk 0:01:57]}
22... Qb2 {[%clk 0:02:24.7]} 23. Bc1 {[%clk 0:01:52.2]} 23... Qc2 {[%clk
0:02:21.7]} 24. h5 {[%clk 0:01:49.2]} 24... Kf7 {[%clk 0:02:09.6]} 25. Kh2
{[%clk 0:01:40.1]} 25... Nb5 {[%clk 0:02:08.1]} 26. Qg3 {[%clk 0:00:56.1]} 26...
Qxc3 {[%clk 0:02:04.2]} 27. Be3 {[%clk 0:00:51.6]} 27... Nxd4 {[%clk 0:01:37.2]}
28. Rc1 {[%clk 0:00:30.5]} 28... Rc2 {[%clk 0:01:35]} 29. Rb1 {[%clk 0:00:30.8]}
29... Nb3 {[%clk 0:01:14]} 30. Bxb6 {[%clk 0:00:23.1]} 30... Qxg3+ {[%clk
0:01:10.5]} 31. fxg3 {[%clk 0:00:23.4]} 31... Nd2 {[%clk 0:01:08.5]} 32. Bd8
{[%clk 0:00:19.3]} 32... Nxb1 {[%clk 0:01:08]} 0-1

[Event "Early-Titled-Tuesday-Blitz-May-28-2024"]
[Site "Chess.com"]
[Date "2024.05.28"]
[Round "8"]
[White "carloseduar100"]
[Black "Dubs123"]
[Result "0-1"]
[WhiteElo "2299"]
[BlackElo "2448"]
[TimeControl "180+1"]
[EndTime "9:28:53 PDT"]
[Termination "Dubs123 won by resignation"]

1. d4 {[%clk 0:02:54.6]} 1... c5 {[%clk 0:02:53.4]} 2. d5 {[%clk 0:02:52.3]}
2... d6 {[%clk 0:02:52.2]} 3. Nc3 {[%clk 0:02:52.2]} 3... e5 {[%clk 0:02:49.1]}
4. dxe6 {[%clk 0:02:52.1]} 4... Bxe6 {[%clk 0:02:42.3]} 5. e4 {[%clk 0:02:52.1]}
5... Nf6 {[%clk 0:02:37.7]} 6. Bg5 {[%clk 0:02:50.1]} 6... Be7 {[%clk
0:02:37.1]} 7. Qd2 {[%clk 0:02:49.1]} 7... h6 {[%clk 0:02:35.9]} 8. Bh4 {[%clk
0:02:47.5]} 8... Nc6 {[%clk 0:02:26.9]} 9. Nf3 {[%clk 0:02:45.1]} 9... a6 {[%clk
0:02:22]} 10. O-O-O {[%clk 0:02:43.6]} 10... Qc7 {[%clk 0:01:54.4]} 11. Bxf6
{[%clk 0:02:41.7]} 11... Bxf6 {[%clk 0:01:46.1]} 12. Qxd6 {[%clk 0:02:40.8]}
12... Qxd6 {[%clk 0:01:45]} 13. Rxd6 {[%clk 0:02:41.6]} 13... Bxc3 {[%clk
0:01:39.3]} 14. bxc3 {[%clk 0:02:41.9]} 14... Ke7 {[%clk 0:01:27.9]} 15. Rd2
{[%clk 0:02:39.2]} 15... Bxa2 {[%clk 0:01:06.4]} 16. c4 {[%clk 0:02:36.9]} 16...
Na5 {[%clk 0:01:04.6]} 17. Ne5 {[%clk 0:02:27]} 17... Ke6 {[%clk 0:01:03.8]} 18.
Nd3 {[%clk 0:02:27.1]} 18... Rhc8 {[%clk 0:00:55.2]} 19. Nb2 {[%clk 0:02:26.1]}
19... Rab8 {[%clk 0:00:42.7]} 20. g3 {[%clk 0:02:14.9]} 20... Ke7 {[%clk
0:00:25]} 21. Bd3 {[%clk 0:02:02.5]} 21... b5 {[%clk 0:00:25]} 22. cxb5 {[%clk
0:01:56.2]} 22... axb5 {[%clk 0:00:25.9]} 23. Be2 {[%clk 0:01:37.3]} 23... c4
{[%clk 0:00:25.7]} 24. c3 {[%clk 0:01:28.3]} 24... b4 {[%clk 0:00:24.9]} 25. Kc2
{[%clk 0:01:29.2]} 25... bxc3 {[%clk 0:00:22.7]} 26. Kxc3 {[%clk 0:01:27.6]}
26... Rb3+ {[%clk 0:00:22.6]} 27. Kc2 {[%clk 0:01:23.1]} 27... c3 {[%clk
0:00:22.7]} 28. Bg4 {[%clk 0:01:02]} 28... Rxb2+ {[%clk 0:00:21.8]} 0-1

[Event "Early-Titled-Tuesday-Blitz-May-28-2024"]
[Site "Chess.com"]
[Date "2024.05.28"]
[Round "8"]
[White "Alexchess1984"]
[Black "NovakRatko"]
[Result "1-0"]
[WhiteElo "2599"]
[BlackElo "2372"]
[TimeControl "180+1"]
[EndTime "9:28:55 PDT"]
[Termination "Alexchess1984 won on time"]

1. d4 {[%clk 0:03:00.9]} 1... d5 {[%clk 0:02:33.7]} 2. Bf4 {[%clk 0:02:58.7]}
2... c5 {[%clk 0:02:33.8]} 3. e3 {[%clk 0:02:58.7]} 3... Nc6 {[%clk 0:02:34.3]}
4. Nf3 {[%clk 0:02:58.5]} 4... cxd4 {[%clk 0:02:35.1]} 5. exd4 {[%clk
0:02:58.1]} 5... f6 {[%clk 0:02:35.7]} 6. c3 {[%clk 0:02:58.3]} 6... Bg4 {[%clk
0:02:36.2]} 7. Be2 {[%clk 0:02:57.9]} 7... e6 {[%clk 0:02:36.3]} 8. h3 {[%clk
0:02:58.2]} 8... Bh5 {[%clk 0:02:36.6]} 9. Bh2 {[%clk 0:02:58.3]} 9... Bd6
{[%clk 0:02:36.5]} 10. Nbd2 {[%clk 0:02:48.7]} 10... Nge7 {[%clk 0:02:34.3]} 11.
O-O {[%clk 0:02:38.9]} 11... O-O {[%clk 0:02:33.4]} 12. Re1 {[%clk 0:02:37.9]}
12... Bxh2+ {[%clk 0:02:32.3]} 13. Nxh2 {[%clk 0:02:37.3]} 13... Bf7 {[%clk
0:02:32.8]} 14. Bd3 {[%clk 0:02:34.5]} 14... Qd6 {[%clk 0:02:32.2]} 15. Qc2
{[%clk 0:02:34.6]} 15... Kh8 {[%clk 0:02:31.4]} 16. Ndf3 {[%clk 0:02:26.4]}
16... Rac8 {[%clk 0:02:28.9]} 17. Bxh7 {[%clk 0:02:24.7]} 17... g6 {[%clk
0:02:28.8]} 18. Ng4 {[%clk 0:02:15.1]} 18... Kxh7 {[%clk 0:02:01.3]} 19. Nxf6+
{[%clk 0:02:14.6]} 19... Kg7 {[%clk 0:02:01.8]} 20. Ng4 {[%clk 0:02:11.2]} 20...
Nf5 {[%clk 0:01:58.1]} 21. Qd2 {[%clk 0:02:06.1]} 21... Rh8 {[%clk 0:01:53.6]}
22. Re2 {[%clk 0:02:05.5]} 22... Rce8 {[%clk 0:01:21.2]} 23. Rae1 {[%clk
0:02:04.8]} 23... a6 {[%clk 0:01:21.1]} 24. a3 {[%clk 0:02:03.5]} 24... b5
{[%clk 0:01:21]} 25. Ng5 {[%clk 0:02:00.8]} 25... Bg8 {[%clk 0:01:09.2]} 26. Ne5
{[%clk 0:01:40.3]} 26... Nxe5 {[%clk 0:01:06.1]} 27. Rxe5 {[%clk 0:01:39.6]}
27... Rh5 {[%clk 0:01:05.4]} 28. g4 {[%clk 0:01:37.7]} 28... Nh4 {[%clk
0:00:45.4]} 29. gxh5 {[%clk 0:01:34.9]} 29... gxh5 {[%clk 0:00:36.9]} 30. Kh1
{[%clk 0:01:28.8]} 30... Rf8 {[%clk 0:00:33.4]} 31. Rg1 {[%clk 0:01:28]} 31...
Kf6 {[%clk 0:00:32.8]} 32. Qf4+ {[%clk 0:01:24.2]} 32... Nf5 {[%clk 0:00:32.7]}
33. Rxf5+ {[%clk 0:01:23.3]} 1-0

[Event "Early-Titled-Tuesday-Blitz-May-28-2024"]
[Site "Chess.com"]
[Date "2024.05.28"]
[Round "8"]
[White "Blitz_Lover1"]
[Black "Root_21"]
[Result "1-0"]
[WhiteElo "2560"]
[BlackElo "2671"]
[TimeControl "180+1"]
[EndTime "9:28:59 PDT"]
[Termination "Blitz_Lover1 won on time"]

1. e4 {[%clk 0:03:00.9]} 1... c5 {[%clk 0:02:59.6]} 2. Nf3 {[%clk 0:03:00.8]}
2... d6 {[%clk 0:03:00.1]} 3. d4 {[%clk 0:03:01]} 3... cxd4 {[%clk 0:03:01]} 4.
Nxd4 {[%clk 0:03:01.3]} 4... Nf6 {[%clk 0:03:01.7]} 5. Nc3 {[%clk 0:03:01.7]}
5... a6 {[%clk 0:03:02.3]} 6. Bg5 {[%clk 0:03:01.1]} 6... e6 {[%clk 0:03:02.5]}
7. f4 {[%clk 0:03:01.3]} 7... Be7 {[%clk 0:03:03.2]} 8. Qf3 {[%clk 0:03:00]}
8... Qc7 {[%clk 0:03:03.8]} 9. O-O-O {[%clk 0:02:59.1]} 9... Nbd7 {[%clk
0:03:04.5]} 10. Bd3 {[%clk 0:02:58.1]} 10... h6 {[%clk 0:03:04.8]} 11. Bh4
{[%clk 0:02:55.9]} 11... g5 {[%clk 0:03:04.6]} 12. fxg5 {[%clk 0:02:53.2]} 12...
Ne5 {[%clk 0:03:05.2]} 13. Qe2 {[%clk 0:02:53]} 13... Nfg4 {[%clk 0:03:05]} 14.
h3 {[%clk 0:02:38.3]} 14... hxg5 {[%clk 0:03:05]} 15. Bg3 {[%clk 0:02:38.4]}
15... Nf6 {[%clk 0:03:04.5]} 16. Nf3 {[%clk 0:02:25.9]} 16... Nh5 {[%clk
0:02:54.6]} 17. Bh2 {[%clk 0:02:23]} 17... Bd7 {[%clk 0:02:49.5]} 18. Rhf1
{[%clk 0:02:11.9]} 18... Nf4 {[%clk 0:02:30.2]} 19. Qd2 {[%clk 0:01:47.3]} 19...
Nxf3 {[%clk 0:01:13.1]} 20. Rxf3 {[%clk 0:01:45.2]} 20... Ng6 {[%clk 0:01:13.1]}
21. Rdf1 {[%clk 0:01:36.5]} 21... Rh7 {[%clk 0:01:12.8]} 22. e5 {[%clk
0:01:21.9]} 22... dxe5 {[%clk 0:00:20.6]} 23. Rxf7 {[%clk 0:01:21.7]} 23... Rh6
{[%clk 0:00:18.2]} 24. Rh7 {[%clk 0:01:12.6]} 24... Rxh7 {[%clk 0:00:03.9]} 25.
Bxg6+ {[%clk 0:01:12.9]} 25... Kd8 {[%clk 0:00:04.8]} 26. Bxh7 {[%clk
0:01:13.1]} 26... Kc8 {[%clk 0:00:03.8]} 27. Rf7 {[%clk 0:01:11.5]} 27... Bd6
{[%clk 0:00:03.8]} 28. Ne4 {[%clk 0:01:10.2]} 1-0

[Event "Early-Titled-Tuesday-Blitz-May-28-2024"]
[Site "Chess.com"]
[Date "2024.05.28"]
[Round "8"]
[White "AradNazari"]
[Black "DanielNaroditsky"]
[Result "0-1"]
[WhiteElo "2790"]
[BlackElo "3061"]
[TimeControl "180+1"]
[EndTime "9:29:04 PDT"]
[Termination "DanielNaroditsky won on time"]

1. e4 {[%clk 0:03:00.9]} 1... c5 {[%clk 0:02:59.9]} 2. Nf3 {[%clk 0:03:01.3]}
2... d6 {[%clk 0:03:00.2]} 3. d4 {[%clk 0:03:00.6]} 3... cxd4 {[%clk 0:03:01.1]}
4. Nxd4 {[%clk 0:03:00.9]} 4... Nf6 {[%clk 0:03:01.9]} 5. Nc3 {[%clk 0:03:01.4]}
5... a6 {[%clk 0:03:02.7]} 6. Bg5 {[%clk 0:03:01.6]} 6... Nbd7 {[%clk
0:03:01.4]} 7. Qe2 {[%clk 0:02:56.6]} 7... h6 {[%clk 0:02:59]} 8. Bh4 {[%clk
0:02:55.5]} 8... g6 {[%clk 0:02:59.5]} 9. f4 {[%clk 0:02:52.3]} 9... e5 {[%clk
0:02:59.3]} 10. fxe5 {[%clk 0:02:33.6]} 10... dxe5 {[%clk 0:02:58.8]} 11. O-O-O
{[%clk 0:02:34.1]} 11... Bg7 {[%clk 0:02:53.2]} 12. Nb3 {[%clk 0:01:45.9]} 12...
O-O {[%clk 0:02:40.9]} 13. Kb1 {[%clk 0:01:32.1]} 13... b5 {[%clk 0:02:39.7]}
14. g4 {[%clk 0:01:22.3]} 14... Qc7 {[%clk 0:02:33.3]} 15. Rg1 {[%clk 0:01:07]}
15... b4 {[%clk 0:02:30.7]} 16. Nd5 {[%clk 0:00:58]} 16... Nxd5 {[%clk
0:02:31.2]} 17. exd5 {[%clk 0:00:58.6]} 17... a5 {[%clk 0:02:32]} 18. d6 {[%clk
0:00:44.6]} 18... Qb8 {[%clk 0:02:27.1]} 19. Be7 {[%clk 0:00:37.2]} 19... a4
{[%clk 0:02:26.2]} 20. Nc1 {[%clk 0:00:34.9]} 20... b3 {[%clk 0:02:23.3]} 21.
cxb3 {[%clk 0:00:30.7]} 21... axb3 {[%clk 0:02:24.2]} 22. Nxb3 {[%clk
0:00:29.9]} 22... e4 {[%clk 0:02:17.4]} 23. Bxf8 {[%clk 0:00:19.7]} 23... Nxf8
{[%clk 0:02:17.1]} 24. Qxe4 {[%clk 0:00:16.1]} 24... Qa7 {[%clk 0:02:17.8]} 25.
Bc4 {[%clk 0:00:14.9]} 25... Qxa2+ {[%clk 0:02:16.8]} 26. Kc2 {[%clk 0:00:13]}
26... Qxb2+ {[%clk 0:02:17.7]} 27. Kd3 {[%clk 0:00:13.7]} 27... Rb8 {[%clk
0:01:49]} 28. Nd2 {[%clk 0:00:12.4]} 28... Ne6 {[%clk 0:01:46.2]} 29. Ke2 {[%clk
0:00:08]} 29... Bb7 {[%clk 0:01:44.5]} 30. Qe3 {[%clk 0:00:03.4]} 30... Bd4
{[%clk 0:01:42.7]} 31. Qb3 {[%clk 0:00:02.5]} 31... Nf4+ {[%clk 0:01:43.2]} 32.
Ke1 {[%clk 0:00:02.2]} 32... Qxb3 {[%clk 0:01:37.6]} 33. Nxb3 {[%clk 0:00:02]}
33... Bxg1 {[%clk 0:01:38.3]} 34. d7 {[%clk 0:00:02.4]} 34... Rd8 {[%clk
0:01:38.5]} 35. Bb5 {[%clk 0:00:02.8]} 35... Bb6 {[%clk 0:01:38.1]} 36. Kf1
{[%clk 0:00:01.8]} 36... Ne6 {[%clk 0:01:36.7]} 37. Re1 {[%clk 0:00:02.3]} 37...
Bd5 {[%clk 0:01:35.9]} 38. Nd2 {[%clk 0:00:02.7]} 38... Ba5 {[%clk 0:01:36.1]}
39. Ne4 {[%clk 0:00:03.1]} 39... Bxe4 {[%clk 0:01:36.2]} 40. Rxe4 {[%clk
0:00:03.2]} 40... Kg7 {[%clk 0:01:37]} 41. Rc4 {[%clk 0:00:03.7]} 41... Kf6
{[%clk 0:01:37.1]} 42. Rc8 {[%clk 0:00:04.3]} 42... Ke7 {[%clk 0:01:37.4]} 43.
h3 {[%clk 0:00:04.6]} 43... Bc7 {[%clk 0:01:36.8]} 44. Kg2 {[%clk 0:00:04.2]}
44... Bd6 {[%clk 0:01:37]} 45. Kf3 {[%clk 0:00:04.4]} 45... Nc5 {[%clk
0:01:37.7]} 0-1

[Event "Early-Titled-Tuesday-Blitz-May-28-2024"]
[Site "Chess.com"]
[Date "2024.05.28"]
[Round "8"]
[White "ValeriyGrinev"]
[Black "Eliwood44"]
[Result "1/2-1/2"]
[WhiteElo "2581"]
[BlackElo "2473"]
[TimeControl "180+1"]
[EndTime "9:29:08 PDT"]
[Termination "Game drawn by repetition"]

1. e4 {[%clk 0:03:00.9]} 1... e5 {[%clk 0:02:59.2]} 2. Nf3 {[%clk 0:03:00.1]}
2... Nc6 {[%clk 0:02:59.8]} 3. Bb5 {[%clk 0:02:59.5]} 3... Nf6 {[%clk
0:02:59.7]} 4. O-O {[%clk 0:02:58.8]} 4... Nxe4 {[%clk 0:02:59.6]} 5. Re1 {[%clk
0:02:58.6]} 5... Nd6 {[%clk 0:02:59.7]} 6. Bxc6 {[%clk 0:02:55.7]} 6... dxc6
{[%clk 0:03:00.6]} 7. Nxe5 {[%clk 0:02:55.1]} 7... Be7 {[%clk 0:03:00.8]} 8. d4
{[%clk 0:02:55.2]} 8... O-O {[%clk 0:03:00.8]} 9. Nd2 {[%clk 0:02:54.3]} 9...
Be6 {[%clk 0:02:58.6]} 10. Ndf3 {[%clk 0:02:53.5]} 10... Ne8 {[%clk 0:02:58.6]}
11. h3 {[%clk 0:02:52.9]} 11... Nf6 {[%clk 0:02:57.5]} 12. c3 {[%clk 0:02:52.8]}
12... Re8 {[%clk 0:02:56.9]} 13. Bf4 {[%clk 0:02:52.2]} 13... Bd5 {[%clk
0:02:54.3]} 14. Qd3 {[%clk 0:02:44]} 14... c5 {[%clk 0:02:53.2]} 15. Rad1 {[%clk
0:02:34.2]} 15... cxd4 {[%clk 0:02:51.9]} 16. Nxd4 {[%clk 0:02:32.2]} 16... Bf8
{[%clk 0:02:27]} 17. c4 {[%clk 0:02:19]} 17... Be6 {[%clk 0:02:25.6]} 18. Nxe6
{[%clk 0:02:17.4]} 18... Qxd3 {[%clk 0:02:25.2]} 19. Nxd3 {[%clk 0:02:03.3]}
19... Rxe6 {[%clk 0:02:24.9]} 20. Rxe6 {[%clk 0:02:02.3]} 20... fxe6 {[%clk
0:02:25.8]} 21. Bxc7 {[%clk 0:02:02.5]} 21... Rc8 {[%clk 0:02:25.2]} 22. Be5
{[%clk 0:01:51.2]} 22... Rxc4 {[%clk 0:02:23.8]} 23. a3 {[%clk 0:01:42.3]} 23...
Nd5 {[%clk 0:02:08.3]} 24. Kf1 {[%clk 0:01:37]} 24... Rc2 {[%clk 0:02:05.9]} 25.
Ne1 {[%clk 0:01:31.2]} 25... Rc6 {[%clk 0:02:03]} 26. Ke2 {[%clk 0:01:24]} 26...
g6 {[%clk 0:02:02.5]} 27. g3 {[%clk 0:01:14]} 27... Bg7 {[%clk 0:02:01.4]} 28.
Bxg7 {[%clk 0:01:10.6]} 28... Kxg7 {[%clk 0:02:02.3]} 29. Rd2 {[%clk 0:01:08.6]}
29... Kf6 {[%clk 0:02:00.5]} 30. Rc2 {[%clk 0:01:05.9]} 30... Rxc2+ {[%clk
0:01:55.2]} 31. Nxc2 {[%clk 0:01:06.8]} 31... Ke5 {[%clk 0:01:55.5]} 32. Kd3
{[%clk 0:01:04.8]} 32... g5 {[%clk 0:01:54.5]} 33. Ne3 {[%clk 0:01:00]} 33...
Nxe3 {[%clk 0:01:52.2]} 34. Kxe3 {[%clk 0:00:59.8]} 34... h5 {[%clk 0:01:51.1]}
35. b3 {[%clk 0:00:46.7]} 35... b6 {[%clk 0:01:48.3]} 36. Kd3 {[%clk 0:00:45.5]}
36... Kd5 {[%clk 0:01:44.6]} 37. Ke3 {[%clk 0:00:42.5]} 37... Ke5 {[%clk
0:01:38.7]} 38. f3 {[%clk 0:00:40.2]} 38... a6 {[%clk 0:01:36.1]} 39. Kd3 {[%clk
0:00:39.2]} 39... b5 {[%clk 0:01:35.5]} 40. b4 {[%clk 0:00:33.5]} 40... h4
{[%clk 0:01:31.4]} 41. gxh4 {[%clk 0:00:28.8]} 41... gxh4 {[%clk 0:01:30.7]} 42.
Ke3 {[%clk 0:00:29.4]} 42... Kf5 {[%clk 0:01:29.3]} 43. f4 {[%clk 0:00:28]}
43... e5 {[%clk 0:01:29.5]} 44. fxe5 {[%clk 0:00:25.9]} 44... Kxe5 {[%clk
0:01:30.4]} 45. Kf3 {[%clk 0:00:25.6]} 45... Kf5 {[%clk 0:01:11.4]} 46. Ke3
{[%clk 0:00:23.7]} 46... Ke5 {[%clk 0:01:11.8]} 47. Kf3 {[%clk 0:00:23.7]} 47...
Kf5 {[%clk 0:01:12.2]} 48. Ke3 {[%clk 0:00:23.7]} 48... Ke5 {[%clk 0:01:12.6]}
1/2-1/2

[Event "Early-Titled-Tuesday-Blitz-May-28-2024"]
[Site "Chess.com"]
[Date "2024.05.28"]
[Round "8"]
[White "alexrustemov"]
[Black "Galileo22"]
[Result "1-0"]
[WhiteElo "2832"]
[BlackElo "2631"]
[TimeControl "180+1"]
[EndTime "9:29:10 PDT"]
[Termination "alexrustemov won by resignation"]

1. d4 {[%clk 0:03:00.9]} 1... d5 {[%clk 0:02:59.6]} 2. c4 {[%clk 0:03:01.3]}
2... c6 {[%clk 0:02:59.8]} 3. Nc3 {[%clk 0:03:01.7]} 3... Nf6 {[%clk 0:03:00.1]}
4. e3 {[%clk 0:03:02.2]} 4... g6 {[%clk 0:02:56.5]} 5. Nf3 {[%clk 0:03:02.1]}
5... Bg7 {[%clk 0:02:57]} 6. Be2 {[%clk 0:03:02.6]} 6... O-O {[%clk 0:02:56.8]}
7. O-O {[%clk 0:03:03.1]} 7... a6 {[%clk 0:02:56]} 8. h3 {[%clk 0:02:58.6]} 8...
b5 {[%clk 0:02:51.8]} 9. b3 {[%clk 0:02:57.8]} 9... Bf5 {[%clk 0:02:46.8]} 10.
Bb2 {[%clk 0:02:54.5]} 10... Ne4 {[%clk 0:02:44.1]} 11. Ne5 {[%clk 0:02:42.1]}
11... Nxc3 {[%clk 0:02:28.3]} 12. Bxc3 {[%clk 0:02:41.8]} 12... Be6 {[%clk
0:02:09.2]} 13. cxb5 {[%clk 0:02:35.9]} 13... cxb5 {[%clk 0:02:08.2]} 14. Nd3
{[%clk 0:02:25.2]} 14... Nd7 {[%clk 0:02:03.3]} 15. a4 {[%clk 0:02:18]} 15...
Bf5 {[%clk 0:01:59.8]} 16. axb5 {[%clk 0:02:15.2]} 16... axb5 {[%clk 0:01:59.1]}
17. Bb4 {[%clk 0:02:14.5]} 17... Re8 {[%clk 0:01:27.6]} 18. Nc5 {[%clk
0:02:09.9]} 18... Nxc5 {[%clk 0:01:24]} 19. Bxc5 {[%clk 0:02:10.8]} 19... Bd7
{[%clk 0:01:17.1]} 20. Rxa8 {[%clk 0:02:01.6]} 20... Qxa8 {[%clk 0:01:16.7]} 21.
Qa1 {[%clk 0:02:02.3]} 21... e6 {[%clk 0:01:11.3]} 22. Qc3 {[%clk 0:01:58.5]}
22... Qb7 {[%clk 0:01:10.1]} 23. Ra1 {[%clk 0:01:57.9]} 23... Ra8 {[%clk
0:01:09.2]} 24. Ra5 {[%clk 0:01:54.6]} 24... Bf6 {[%clk 0:01:05.2]} 25. Qa1
{[%clk 0:01:49.1]} 25... Rxa5 {[%clk 0:01:03.9]} 26. Qxa5 {[%clk 0:01:49.8]}
26... h5 {[%clk 0:00:59.3]} 27. b4 {[%clk 0:01:48.6]} 27... Kg7 {[%clk 0:00:57]}
28. Bd3 {[%clk 0:01:47.7]} 28... Qb8 {[%clk 0:00:45.8]} 29. g3 {[%clk
0:01:44.3]} 29... Bd8 {[%clk 0:00:42.4]} 30. Qa1 {[%clk 0:01:41.9]} 30... Bc7
{[%clk 0:00:40.1]} 31. Kg2 {[%clk 0:01:41.3]} 31... Qb7 {[%clk 0:00:35.7]} 32.
h4 {[%clk 0:01:40.4]} 32... Kg8 {[%clk 0:00:32.6]} 33. Kf1 {[%clk 0:01:40.3]}
33... Bd8 {[%clk 0:00:29.6]} 34. Ke2 {[%clk 0:01:39.9]} 34... Be8 {[%clk
0:00:23.8]} 35. Kd2 {[%clk 0:01:39.3]} 35... Bc6 {[%clk 0:00:23.8]} 36. Bc2
{[%clk 0:01:26]} 36... Bd7 {[%clk 0:00:23.5]} 37. Qd1 {[%clk 0:01:26.1]} 37...
Qa6 {[%clk 0:00:21.3]} 38. Qf3 {[%clk 0:01:25.6]} 38... Qa1 {[%clk 0:00:18.1]}
39. Qf4 {[%clk 0:01:25.2]} 39... Qf1 {[%clk 0:00:08.5]} 40. Bd3 {[%clk
0:01:22.9]} 40... Qa1 {[%clk 0:00:05.2]} 41. Qd6 {[%clk 0:01:22.3]} 41... Qb2+
{[%clk 0:00:03.2]} 42. Bc2 {[%clk 0:01:22.5]} 1-0